lending/lending_fUSD_20250508
["ID","MTS","AMOUNT","RATE_DAILY","PERIOD"]
[360331835,1746745851017,-400.0,0.00019988,2]
[360331836,1746745851027,-400.0,0.00019988,2]
[360331837,1746745851037,-661.74,0.00019988,2]
[360331838,1746745851047,-400.0,0.00019988,2]
[360331839,1746745851056,-400.0,0.00019988,2]
[360331840,1746745851067,-400.0,0.00019988,2]
[360331841,1746745851076,-400.0,0.00019988,2]
[360331842,1746745851085,-400.0,0.00019988,2]
[360331843,1746745851095,-400.0,0.00019988,2]
[360331844,1746745851104,-400.0,0.00019988,2]
[360331845,1746745851114,-400.0,0.00019988,2]
[360331846,1746745851123,-693.66,0.00019988,2]
[360331847,1746745851132,-400.0,0.00019988,2]
[360331848,1746745851142,-400.0,0.00019988,2]
[360331849,1746745851151,-400.0,0.00019988,2]
[360331850,1746745851160,-764.77,0.00019988,2]
[360331851,1746745851170,-400.0,0.00019988,2]
[360331852,1746745851180,-400.0,0.00019988,2]
[360331853,1746745851190,-400.0,0.00019988,2]
[360331854,1746745851199,-795.31,0.00019988,2]
[360331855,1746745851209,-400.0,0.00019988,2]
[360331856,1746745851218,-537.29,0.00019988,2]
[360331857,1746745851229,-400.0,0.00019988,2]
[360331858,1746745851238,-400.0,0.00019988,2]
[360331859,1746745851247,-400.0,0.00019988,2]
[360331860,1746745851257,-400.0,0.00019988,2]
[360331861,1746745851267,-914.59,0.00019988,2]
[360331862,1746745851276,-400.0,0.00019988,2]
[360331863,1746745851285,-405.35,0.00019988,2]
[360331864,1746745851295,-1731.55,0.00019988,2]
[360331865,1746745851304,-422.02,0.00019988,2]
[360331866,1746745851313,-548.05,0.00019988,2]
[360331867,1746745851322,-400.0,0.00019988,2]
[360331868,1746745851331,-500.0,0.00019988,2]
[360331869,1746745851341,-400.0,0.00019988,2]
[360331870,1746745851350,-400.0,0.00019988,2]
[360331871,1746745851360,-509.11,0.00019988,2]
[360331872,1746745851369,-400.0,0.00019988,2]
[360331873,1746745851378,-613.24,0.00019988,2]
[360331874,1746745851388,-759.89,0.00019988,2]
[360331875,1746745851397,-540.15,0.00019988,2]
[360331876,1746745851407,-400.0,0.00019988,2]
[360331877,1746745851416,-400.0,0.00019988,2]
[360331878,1746745851426,-400.0,0.00019988,2]
[360331879,1746745851435,-400.0,0.00019988,2]
[360331880,1746745851444,-664.15,0.00019988,2]
[360331881,1746745851455,-400.0,0.00019988,2]
[360331882,1746745851466,-203.45035829,0.00019988,2]
[360331883,1746745851477,-405.01,0.00019988,2]
[360331884,1746745851487,-400.0,0.00019988,2]
[360331885,1746745851496,-400.0,0.00019988,2]
[360331886,1746745851505,-400.0,0.00019988,2]
[360331887,1746745851515,-400.0,0.00019988,2]
[360331888,1746745851524,-1251.11,0.00019988,2]
[360331889,1746745851534,-400.0,0.00019988,2]
[360331890,1746745851544,-400.0,0.00019988,2]
[360331891,1746745851553,-400.0,0.00019988,2]
[360331892,1746745851562,-512.34317986,0.00019988,2]
[360331893,1746745851571,-400.0,0.00019988,2]
[360331894,1746745851580,-400.0,0.00019988,2]
[360331895,1746745851590,-500.0,0.00019988,2]
[360331896,1746745851600,-1057.43,0.00019988,2]
[360331897,1746745851609,-400.0,0.00019988,2]
[360331898,1746745851618,-400.0,0.00019988,2]
[360331899,1746745851627,-400.0,0.00019988,2]
[360331900,1746745851637,-400.0,0.00019988,2]
[360331901,1746745851646,-507.19116418,0.00019988,2]
[360331902,1746745851655,-400.0,0.00019988,2]
[360331903,1746745851664,-420.1,0.00019988,2]
[360331904,1746745851675,-400.0,0.00019988,2]
[360331905,1746745851684,-400.0,0.00019988,2]
[360331906,1746745851693,-506.17,0.00019988,2]
[360331907,1746745851703,-601.38,0.00019988,2]
[360331908,1746745851713,-235.65297099,0.00019988,2]
[360331909,1746745851725,-400.0,0.00019988,2]
[360331910,1746745851734,-400.0,0.00019988,2]
[360331911,1746745851744,-400.0,0.00019988,2]
[360331912,1746745851753,-496.37,0.00019988,2]
[360331913,1746745851762,-400.0,0.00019988,2]
[360331914,1746745851772,-1033.74,0.00019988,2]
[360331915,1746745851782,-466.82373252,0.00019988,2]
[360331916,1746745851791,-400.0,0.00019988,2]
[360331917,1746745851800,-400.0,0.00019988,2]
[360331918,1746745851809,-400.0,0.00019988,2]
[360331919,1746745851819,-400.0,0.00019988,2]
[360331920,1746745851829,-657.69,0.00019988,2]
[360331921,1746745851839,-400.0,0.00019988,2]
[360331922,1746745851848,-523.40424961,0.00019988,2]
[360331923,1746745851857,-1345.04,0.00019988,2]
[360331924,1746745851867,-408.18,0.00019988,2]
[360331925,1746745851876,-787.35,0.00019988,2]
[360331926,1746745851886,-400.0,0.00019988,2]
[360331927,1746745851895,-400.0,0.00019988,2]
[360331928,1746745851905,-1010.3,0.00019988,2]
[360331929,1746745851914,-400.0,0.00019988,2]
[360331930,1746745851923,-400.0,0.00019988,2]
[360331931,1746745851932,-1904.36,0.00019988,2]
[360331932,1746745851941,-400.0,0.00019988,2]
[360331933,1746745851951,-400.0,0.00019988,2]
[360331934,1746745851962,-400.0,0.00019988,2]
[360331935,1746745851971,-1305.5,0.00019988,2]
[360331936,1746745851981,-1200.66,0.00019988,2]
[360331937,1746745851990,-400.0,0.00019988,2]
[360331938,1746745852000,-507.48443002,0.00019988,2]
[360331939,1746745852009,-400.0,0.00019988,2]
[360331940,1746745852019,-666.87,0.00019988,2]
[360331941,1746745852028,-400.0,0.00019988,2]
[360331942,1746745852038,-2266.048491,0.00019988,2]
[360331943,1746745852048,-400.0,0.00019988,2]
[360331944,1746745852057,-400.0,0.00019988,2]
[360331945,1746745852066,-1315.02,0.00019988,2]
[360331946,1746745852077,-400.0,0.00019988,2]
[360331947,1746745852089,-450.0,0.00019988,2]
[360331948,1746745852099,-400.0,0.00019988,2]
[360331949,1746745852108,-400.0,0.00019988,2]
[360331950,1746745852118,-400.0,0.00019988,2]
[360331951,1746745852129,-400.0,0.00019988,2]
[360331952,1746745852138,-550.21,0.00019988,2]
[360331953,1746745852147,-400.0,0.00019988,2]
[360331954,1746745852156,-468.19,0.00019988,2]
[360331955,1746745852165,-400.0,0.00019988,2]
[360331956,1746745852174,-1292.25,0.00019988,2]
[360331957,1746745852186,-400.0,0.00019988,2]
[360331958,1746745852195,-1219.51,0.00019988,2]
[360331959,1746745852204,-400.0,0.00019988,2]
[360331960,1746745852213,-500.0,0.00019988,2]
[360331961,1746745852223,-415.11,0.00019988,2]
[360331962,1746745852232,-493.73,0.00019988,2]
[360331963,1746745852240,-400.0,0.00019988,2]
[360331964,1746745852250,-400.0,0.00019988,2]
[360331965,1746745852260,-400.0,0.00019988,2]
[360331966,1746745852269,-400.0,0.00019988,2]
[360331967,1746745852279,-1258.92,0.00019988,2]
[360331968,1746745852289,-3555.39,0.00019988,2]
[360331969,1746745852298,-5768.81,0.00019988,2]
[360331970,1746745852307,-520.28619338,0.00019988,2]
[360331971,1746745852317,-467.94621487,0.00019988,2]
[360331972,1746745852326,-400.0,0.00019988,2]
[360331973,1746745852335,-357.69328804,0.00019988,2]
[360331974,1746745852345,-400.0,0.00019988,2]
[360331975,1746745852354,-853.41,0.00019988,2]
[360331976,1746745852363,-400.0,0.00019988,2]
[360331977,1746745852373,-400.0,0.00019988,2]
[360331978,1746745852382,-400.0,0.00019988,2]
[360331979,1746745852392,-400.0,0.00019988,2]
[360331980,1746745852401,-849.95,0.00019988,2]
[360331981,1746745852410,-400.0,0.00019988,2]
[360331982,1746745852420,-1750.913366,0.00019988,2]
[360331983,1746745852430,-407.24,0.00019988,2]
[360331984,1746745852440,-1181.41,0.00019988,2]
[360331985,1746745852449,-400.0,0.00019988,2]
[360331986,1746745852463,-785.32,0.00019988,2]
[360331987,1746745852472,-400.0,0.00019988,2]
[360331988,1746745852481,-400.0,0.00019988,2]
[360331989,1746745852491,-400.0,0.00019988,2]
[360331990,1746745852502,-1237.8,0.00019988,2]
[360331991,1746745852512,-400.0,0.00019988,2]
[360331992,1746745852521,-400.0,0.00019988,2]
[360331993,1746745852532,-1307.0,0.00019988,2]
[360331994,1746745852541,-882.51,0.00019988,2]
[360331995,1746745852550,-500.0,0.00019988,2]
[360331996,1746745852560,-400.0,0.00019988,2]
[360331997,1746745852569,-400.0,0.00019988,2]
[360331998,1746745852578,-400.0,0.00019988,2]
[360331999,1746745852587,-2861.17,0.00019988,2]
[360332000,1746745852596,-400.0,0.00019988,2]
[360332001,1746745852606,-400.0,0.00019988,2]
[360332002,1746745852615,-1069.45,0.00019988,2]
[360332003,1746745852624,-10401.516617,0.00019988,2]
[360332004,1746745852633,-896.39,0.00019988,2]
[360332005,1746745852643,-929.82,0.00019988,2]
[360332006,1746745852652,-118451.16,0.00019988,2]
[360332007,1746745852661,-400.0,0.00019988,2]
[360332008,1746745852671,-400.0,0.00019988,2]
[360332009,1746745852680,-471.07256393,0.00019988,2]
[360332010,1746745852689,-819.51,0.00019988,2]
[360332011,1746745852698,-400.0,0.00019988,2]
[360332012,1746745852707,-191.60868049,0.00019988,2]
[360332013,1746745852717,-1117.4,0.00019988,2]
[360332014,1746745852727,-400.0,0.00019988,2]
[360332015,1746745852736,-400.0,0.00019988,2]
[360332016,1746745852746,-1813.8,0.00019988,2]
[360332017,1746745852755,-500.0,0.00019988,2]
[360332018,1746745852764,-400.0,0.00019988,2]
[360332019,1746745852774,-602.04,0.00019988,2]
[360332020,1746745852783,-400.0,0.00019988,2]
[360332021,1746745852792,-535.89,0.00019988,2]
[360332022,1746745852801,-400.0,0.00019988,2]
[360332023,1746745852810,-893.71,0.00019988,2]
[360332024,1746745852820,-1096.7,0.00019988,2]
[360332025,1746745852829,-400.0,0.00019988,2]
[360332026,1746745852838,-400.0,0.00019988,2]
[360332027,1746745852847,-1321.87,0.00019988,2]
[360332028,1746745852857,-400.0,0.00019988,2]
[360332029,1746745852866,-400.0,0.00019988,2]
[360332030,1746745852876,-400.0,0.00019988,2]
[360332031,1746745852885,-400.0,0.00019988,2]
[360332032,1746745852894,-929.88,0.00019988,2]
[360332033,1746745852903,-400.0,0.00019988,2]
[360332034,1746745852913,-510.4,0.00019988,2]
[360332035,1746745852922,-597.78,0.00019988,2]
[360332036,1746745852932,-1751.16,0.00019988,2]
[360332037,1746745852941,-1000.0,0.00019988,2]
[360332038,1746745852950,-400.0,0.00019988,2]
[360332039,1746745852959,-400.0,0.00019988,2]
[360332040,1746745852969,-400.0,0.00019988,2]
[360332041,1746745852979,-400.0,0.00019988,2]
[360332042,1746745852988,-677.43,0.00019988,2]
[360332043,1746745852997,-400.0,0.00019988,2]
[360332044,1746745853007,-400.0,0.00019988,2]
[360332045,1746745853016,-2590.83,0.00019988,2]
[360332046,1746745853026,-681.61,0.00019988,2]
[360332047,1746745853036,-533.07,0.00019988,2]
[360332048,1746745853046,-400.0,0.00019988,2]
[360332049,1746745853055,-1006.24,0.00019988,2]
[360332050,1746745853064,-400.0,0.00019988,2]
[360332051,1746745853074,-1124.81,0.00019988,2]
[360332052,1746745853084,-400.0,0.00019988,2]
[360332053,1746745853093,-400.0,0.00019988,2]
[360332054,1746745853103,-506.29675602,0.00019988,2]
[360332055,1746745853113,-400.0,0.00019988,2]
[360332056,1746745853124,-400.0,0.00019988,2]
[360332057,1746745853133,-3192.51,0.00019988,2]
[360332058,1746745853143,-400.0,0.00019988,2]
[360332059,1746745853152,-1842.07,0.00019988,2]
[360332060,1746745853162,-400.0,0.00019988,2]
[360332061,1746745853171,-404.5,0.00019988,2]
[360332062,1746745853181,-2917.89,0.00019988,2]
[360332063,1746745853191,-400.0,0.00019988,2]
[360332064,1746745853201,-500.0,0.00019988,2]
[360332065,1746745853210,-984.42,0.00019988,2]
[360332066,1746745853220,-1862.19,0.00019988,2]
[360332067,1746745853230,-2918.86,0.00019988,2]
[360332068,1746745853240,-400.0,0.00019988,2]
[360332069,1746745853249,-400.0,0.00019988,2]
[360332070,1746745853259,-400.0,0.00019988,2]
[360332071,1746745853269,-685.75,0.00019988,2]
[360332072,1746745853279,-1576.88,0.00019988,2]
[360332073,1746745853288,-400.0,0.00019988,2]
[360332074,1746745853298,-1487.74,0.00019988,2]
[360332075,1746745853308,-400.0,0.00019988,2]
[360332076,1746745853456,-508.08843819,0.00019988,2]
[360332077,1746745853467,-2209.16,0.00019988,2]
[360332078,1746745853478,-505.84930466,0.00019988,2]
[360332079,1746745853487,-400.0,0.00019988,2]
[360332080,1746745853496,-509.49399993,0.00019988,2]
[360332081,1746745853507,-1252.4,0.00019988,2]
[360332082,1746745853516,-4424.54,0.00019988,2]
[360332083,1746745853526,-400.0,0.00019988,2]
[360332084,1746745853536,-1440.46,0.00019988,2]
[360332085,1746745853548,-1492.79,0.00019988,2]
[360332086,1746745853558,-2212.82,0.00019988,2]
[360332087,1746745853568,-3491.62,0.00019988,2]
[360332088,1746745853578,-1517.16,0.00019988,2]
[360332089,1746745853587,-400.0,0.00019988,2]
[360332090,1746745853598,-714.95,0.00019988,2]
[360332091,1746745853607,-400.0,0.00019988,2]
[360332092,1746745853617,-400.0,0.00019988,2]
[360332093,1746745853627,-989.44,0.00019988,2]
[360332094,1746745853636,-1868.98,0.00019988,2]
[360332095,1746745853646,-400.0,0.00019988,2]
[360332096,1746745853655,-400.0,0.00019988,2]
[360332097,1746745853665,-400.0,0.00019988,2]
[360332098,1746745853674,-1736.87,0.00019988,2]
[360332099,1746745853685,-545.92237376,0.00019988,2]
[360332100,1746745853694,-400.0,0.00019988,2]
[360332101,1746745853704,-1163.53,0.00019988,2]
[360332102,1746745853713,-400.0,0.00019988,2]
[360332103,1746745853724,-2417.28,0.00019988,2]
[360332104,1746745853733,-400.0,0.00019988,2]
[360332105,1746745853743,-400.0,0.00019988,2]
[360332106,1746745853752,-1104.14,0.00019988,2]
[360332107,1746745853762,-400.0,0.00019988,2]
[360332108,1746745853771,-400.0,0.00019988,2]
[360332109,1746745853781,-464.54,0.00019988,2]
[360332110,1746745853791,-469.3,0.00019988,2]
[360332111,1746745853800,-2499.58,0.00019988,2]
[360332112,1746745853810,-542.8,0.00019988,2]
[360332113,1746745853819,-1301.9,0.00019988,2]
[360332114,1746745853828,-2307.37,0.00019988,2]
[360332115,1746745853838,-400.0,0.00019988,2]
[360332116,1746745853847,-400.0,0.00019988,2]
[360332117,1746745853857,-400.0,0.00019988,2]
[360332118,1746745853866,-400.0,0.00019988,2]
[360332119,1746745853875,-400.0,0.00019988,2]
[360332120,1746745853885,-400.0,0.00019988,2]
[360332121,1746745853894,-5426.95,0.00019988,2]
[360332122,1746745853904,-963.13,0.00019988,2]
[360332123,1746745853913,-2138.69,0.00019988,2]
[360332124,1746745853923,-400.0,0.00019988,2]
[360332125,1746745853933,-400.0,0.00019988,2]
[360332126,1746745853942,-400.0,0.00019988,2]
[360332127,1746745853951,-400.0,0.00019988,2]
[360332128,1746745853961,-400.0,0.00019988,2]
[360332129,1746745853970,-586.71,0.00019988,2]
[360332130,1746745853981,-512.59190856,0.00019988,2]
[360332131,1746745853990,-949.87,0.00019988,2]
[360332132,1746745854000,-400.0,0.00019988,2]
[360332133,1746745854009,-400.0,0.00019988,2]
[360332134,1746745854018,-942.17,0.00019988,2]
[360332135,1746745854028,-1045.48,0.00019988,2]
[360332136,1746745854038,-400.0,0.00019988,2]
[360332137,1746745854047,-6241.23,0.00019988,2]
[360332138,1746745854056,-400.0,0.00019988,2]
[360332139,1746745854066,-400.0,0.00019988,2]
[360332140,1746745854077,-1447.62,0.00019988,2]
[360332141,1746745854086,-400.0,0.00019988,2]
[360332142,1746745854096,-627.08,0.00019988,2]
[360332143,1746745854105,-400.0,0.00019988,2]
[360332144,1746745854115,-1010.41,0.00019988,2]
[360332145,1746745854124,-4558.45,0.00019988,2]
[360332146,1746745854133,-400.0,0.00019988,2]
[360332147,1746745854143,-569.68,0.00019988,2]
[360332148,1746745854153,-2449.31,0.00019988,2]
[360332149,1746745854163,-400.0,0.00019988,2]
[360332150,1746745854172,-400.0,0.00019988,2]
[360332151,1746745854182,-400.0,0.00019988,2]
[360332152,1746745854191,-937.08,0.00019988,2]
[360332153,1746745854201,-1392.53,0.00019988,2]
[360332154,1746745854210,-428.15,0.00019988,2]
[360332155,1746745854220,-400.0,0.00019988,2]
[360332156,1746745854231,-400.0,0.00019988,2]
[360332157,1746745854241,-465.92632603,0.00019988,2]
[360332158,1746745854251,-685.76,0.00019988,2]
[360332159,1746745854260,-400.0,0.00019988,2]
[360332160,1746745854269,-400.0,0.00019988,2]
[360332161,1746745854279,-3876.52,0.00019988,2]
[360332162,1746745854288,-350.60757364,0.00019988,2]
[360332163,1746745854298,-400.0,0.00019988,2]
[360332164,1746745854308,-714.73,0.00019988,2]
[360332165,1746745854317,-400.0,0.00019988,2]
[360332166,1746745854327,-400.0,0.00019988,2]
[360332167,1746745854336,-400.0,0.00019988,2]
[360332168,1746745854345,-1689.48,0.00019988,2]
[360332169,1746745854355,-3953.11,0.00019988,2]
[360332170,1746745854364,-400.0,0.00019988,2]
[360332171,1746745854373,-400.0,0.00019988,2]
[360332172,1746745854382,-958.14,0.00019988,2]
[360332173,1746745854392,-400.0,0.00019988,2]
[360332174,1746745854401,-558.72,0.00019988,2]
[360332175,1746745854410,-674.6,0.00019988,2]
[360332176,1746745854420,-505.65076689,0.00019988,2]
[360332177,1746745854429,-400.0,0.00019988,2]
[360332178,1746745854439,-400.0,0.00019988,2]
[360332179,1746745854448,-400.0,0.00019988,2]
[360332180,1746745854461,-668.36,0.00019988,2]
[360332181,1746745854470,-41645.94,0.00019988,2]
[360332182,1746745854486,-400.0,0.00019988,2]
[360332183,1746745854497,-400.0,0.00019988,2]
[360332184,1746745854506,-724.16,0.00019988,2]
[360332185,1746745854516,-400.0,0.00019988,2]
[360332186,1746745854526,-2693.2,0.00019988,2]
[360332187,1746745854537,-855.66,0.00019988,2]
[360332188,1746745854547,-400.0,0.00019988,2]
[360332189,1746745854556,-400.0,0.00019988,2]
[360332190,1746745854566,-527.9,0.00019988,2]
[360332191,1746745854575,-4311.67,0.00019988,2]
[360332192,1746745854585,-400.0,0.00019988,2]
[360332193,1746745854595,-400.0,0.00019988,2]
[360332194,1746745854605,-940.4,0.00019988,2]
[360332195,1746745854615,-726.72,0.00019988,2]
[360332196,1746745854624,-1285.49,0.00019988,2]
[360332197,1746745854634,-576.39802228,0.00019988,2]
[360332198,1746745854643,-3342.4,0.00019988,2]
[360332199,1746745854652,-422.35,0.00019988,2]
[360332200,1746745854661,-574.43,0.00019988,2]
[360332201,1746745854672,-1856.52,0.00019988,2]
[360332202,1746745854684,-20944.28,0.00019988,2]
[360332203,1746745854694,-400.0,0.00019988,2]
[360332204,1746745854705,-400.0,0.00019988,2]
[360332205,1746745854715,-400.0,0.00019988,2]
[360332206,1746745854726,-400.0,0.00019988,2]
[360332207,1746745854735,-400.0,0.00019995,2]
[360332208,1746745854744,-400.0,0.00019995,2]
[360332209,1746745854754,-400.0,0.00019995,2]
[360332210,1746745854763,-400.0,0.00019995,2]
[360332211,1746745854772,-400.0,0.00019995,2]
[360332212,1746745854782,-594.85,0.00019995,2]
[360332213,1746745854791,-400.0,0.00019995,2]
[360332214,1746745854801,-511.41,0.00019995,2]
[360332215,1746745854810,-400.0,0.00019995,2]
[360332216,1746745854820,-400.0,0.00019995,2]
[360332217,1746745854830,-400.0,0.00019995,2]
[360332218,1746745854840,-400.0,0.00019995,2]
[360332219,1746745854850,-400.0,0.00019995,2]
[360332220,1746745854860,-301.98829718,0.00019995,2]
[360332221,1746745854870,-400.0,0.00019995,2]
[360332222,1746745854880,-400.0,0.00019995,2]
[360332223,1746745854889,-400.0,0.00019995,2]
[360332224,1746745854899,-400.0,0.00019995,2]
[360332225,1746745854909,-400.0,0.00019995,2]
[360332226,1746745854920,-400.0,0.00019995,2]
[360332227,1746745854930,-172.83739825,0.00019995,2]
[360332228,1746745854939,-400.0,0.00019995,2]
[360332229,1746745854949,-400.0,0.00019995,2]
[360332230,1746745854959,-693.01,0.00019995,2]
[360332231,1746745854969,-693.01,0.00019995,2]
[360332232,1746745854983,-693.01,0.00019995,2]
[360332233,1746745854994,-693.01,0.00019995,2]
[360332234,1746745855004,-400.0,0.00019995,2]
[360332235,1746745855014,-555.64,0.00019995,2]
[360332236,1746745855024,-555.64,0.00019995,2]
[360332237,1746745855035,-400.0,0.00019995,2]
[360332238,1746745855044,-400.0,0.00019995,2]
[360332239,1746745855055,-400.0,0.00019995,2]
[360332240,1746745855064,-1405.41,0.00019995,2]
[360332241,1746745855074,-1405.41,0.00019995,2]
[360332242,1746745855084,-1405.41,0.00019995,2]
[360332243,1746745855095,-1405.41,0.00019995,2]
[360332244,1746745855105,-400.0,0.00019995,2]
[360332245,1746745855116,-400.0,0.00019995,2]
[360332246,1746745855126,-400.0,0.00019995,2]
[360332247,1746745855136,-400.0,0.00019995,2]
[360332248,1746745855146,-400.0,0.00019995,2]
[360332249,1746745855156,-400.0,0.00019995,2]
[360332250,1746745855167,-1481.0,0.00019995,2]
[360332251,1746745855177,-1481.0,0.00019995,2]
[360332252,1746745855187,-415.15071863,0.00019995,2]
[360332253,1746745855197,-1481.0,0.00019995,2]
[360332254,1746745855207,-1481.0,0.00019995,2]
[360332255,1746745855217,-400.0,0.00019995,2]
[360332256,1746745855228,-400.0,0.00019995,2]
[360332257,1746745855239,-400.0,0.00019995,2]
[360332258,1746745855249,-400.0,0.00019995,2]
[360332259,1746745855259,-1652.93,0.00019995,2]
[360332260,1746745855269,-1652.93,0.00019995,2]
[360332261,1746745855279,-1652.93,0.00019995,2]
[360332262,1746745855288,-1652.93,0.00019995,2]
[360332263,1746745855298,-837.15,0.00019995,2]
[360332264,1746745855307,-400.0,0.00019995,2]
[360332265,1746745855317,-837.15,0.00019995,2]
[360332266,1746745855326,-837.15,0.00019995,2]
[360332267,1746745855336,-297.69227516,0.00019995,2]
[360332268,1746745855345,-400.0,0.00019995,2]
[360332269,1746745855355,-837.15,0.00019995,2]
[360332270,1746745855364,-183.27901705,0.00019995,2]
[360332271,1746745855373,-396.8454971,0.00019995,2]
[360332272,1746745855383,-351.0389768,0.00019995,2]
[360332273,1746745855392,-1388.71,0.00019995,2]
[360332274,1746745855402,-1388.71,0.00019995,2]
[360332275,1746745855411,-1388.71,0.00019995,2]
[360332276,1746745855421,-1388.71,0.00019995,2]
[360332277,1746745855430,-470.01,0.00019995,2]
[360332278,1746745855440,-470.01,0.00019995,2]
[360332279,1746745855450,-470.01,0.00019995,2]
[360332280,1746745855460,-470.01,0.00019995,2]
[360332281,1746745855475,-1418.5,0.00019995,2]
[360332282,1746745855484,-1418.5,0.00019995,2]
[360332283,1746745855494,-1418.5,0.00019995,2]
[360332284,1746745855504,-1418.5,0.00019995,2]
[360332285,1746745855515,-1215.63,0.00019995,2]
[360332286,1746745855525,-1215.63,0.00019995,2]
[360332287,1746745855535,-1215.63,0.00019995,2]
[360332288,1746745855545,-1215.63,0.00019995,2]
[360332289,1746745855555,-153.13410021,0.00019995,2]
[360332290,1746745855565,-400.0,0.00019995,2]
[360332291,1746745855574,-400.0,0.00019995,2]
[360332292,1746745855584,-339.28445457,0.00019995,2]
[360332293,1746745855593,-796.94,0.00019995,2]
[360332294,1746745855602,-796.94,0.00019995,2]
[360332295,1746745855959,-796.94,0.00019995,2]
[360332296,1746745855984,-796.94,0.00019995,2]
[360332297,1746745855994,-400.0,0.00019995,2]
[360332298,1746745856004,-400.0,0.00019995,2]
[360332299,1746745856014,-400.0,0.00019995,2]
[360332300,1746745856024,-400.0,0.00019995,2]
[360332301,1746745856034,-742.21,0.00019995,2]
[360332302,1746745856044,-742.21,0.00019995,2]
[360332303,1746745856054,-742.21,0.00019995,2]
[360332304,1746745856064,-742.21,0.00019995,2]
[360332305,1746745856074,-952.42,0.00019995,2]
[360332306,1746745856084,-952.42,0.00019995,2]
[360332307,1746745856094,-952.42,0.00019995,2]
[360332308,1746745856104,-952.42,0.00019995,2]
[360332309,1746745856114,-793.85,0.00019995,2]
[360332310,1746745856124,-793.85,0.00019995,2]
[360332311,1746745856134,-793.85,0.00019995,2]
[360332312,1746745856144,-793.85,0.00019995,2]
[360332313,1746745856154,-1571.97,0.00019995,2]
[360332314,1746745856164,-1571.97,0.00019995,2]
[360332315,1746745856173,-1571.97,0.00019995,2]
[360332316,1746745856183,-1571.97,0.00019995,2]
[360332318,1746745856193,-400.0,0.00019995,2]
[360332319,1746745856204,-400.0,0.00019995,2]
[360332320,1746745856213,-400.0,0.00019995,2]
[360332321,1746745856224,-400.0,0.00019995,2]
[360332322,1746745856235,-5296.87,0.00019995,2]
[360332323,1746745856244,-5296.87,0.00019995,2]
[360332324,1746745856254,-5296.87,0.00019995,2]
[360332325,1746745856264,-5296.87,0.00019995,2]
[360332326,1746745856273,-426.63,0.00019995,2]
[360332327,1746745856283,-426.63,0.00019995,2]
[360332328,1746745856293,-426.63,0.00019995,2]
[360332329,1746745856302,-426.63,0.00019995,2]
[360332330,1746745856312,-632.56,0.00019995,2]
[360332331,1746745856322,-632.56,0.00019995,2]
[360332332,1746745856332,-632.56,0.00019995,2]
[360332333,1746745856342,-632.56,0.00019995,2]
[360332334,1746745856352,-400.0,0.00019995,2]
[360332335,1746745856362,-400.0,0.00019995,2]